bitfinex-derivatives/quotes_ETHF0:USTF0_20210406
["timestamp","ask_amount","ask_price","bid_price","bid_amount"]
[1617711320993,92.6878,2118.8,2117.4,5.79]
[1617711321401,92.6878,2118.8,2117.9,5.84]
[1617711321797,92.6878,2118.8,2117.4,5.93]
[1617711321995,92.6878,2118.8,2118.0,5.94]
[1617711322196,2.90695,2118.1,2117.5,2.90695]
[1617711322394,2.90695,2118.1,2117.5,8.57695]
[1617711322594,2.90695,2118.1,2117.5,2.90695]
[1617711322997,2.90695,2118.1,2117.6,5.94]
[1617711323296,2.90695,2118.1,2117.6,8.6307]
[1617711323495,2.90695,2118.1,2117.7,2.0]
[1617711323895,2.90695,2118.1,2117.8,5.9]
[1617711324298,2.90695,2118.1,2118.0,2.90695]
[1617711324697,2.90695,2118.1,2118.0,8.65695]
[1617711331704,2.90695,2118.1,2118.0,5.75]
[1617711332104,2.90695,2118.1,2117.2,5.78]
[1617711332404,30.0,2118.7,2118.0,5.95]
[1617711332605,30.0,2118.7,2117.7,2.90695]
[1617711332806,30.0,2118.7,2117.8,5.69]
[1617711333006,30.0,2118.7,2118.1,5.8]
[1617711333212,30.0,2118.7,2117.8,7.8947]
[1617711333507,30.0,2118.7,2117.9,5.67]
[1617711334308,2.90695,2118.0,2117.9,5.67]
[1617711336309,2.90695,2118.0,2117.8,5.81]
[1617711341820,30.0,2117.9,2117.8,5.81]
[1617711342020,95.0954,2117.9,2117.8,5.81]
[1617711342321,2.90695,2117.4,2117.3,5.83]
[1617711342519,2.90695,2117.4,2117.0,3.13695]
[1617711342821,2.90695,2117.4,2117.3,5.73]
[1617711343220,2.90695,2117.4,2117.2,5.7]
[1617711343420,2.90695,2117.4,2117.0,2.90695]
[1617711343720,2.90695,2117.4,2117.3,5.69]
[1617711343920,2.90695,2117.4,2117.3,2.1751]
[1617711344120,2.90695,2117.4,2117.3,7.9551]
[1617711344523,2.90695,2117.4,2117.3,10.86205]
[1617711346223,2.90695,2117.4,2117.3,7.9551]
[1617711346424,2.90695,2117.4,2117.3,5.78]
[1617711347024,2.90695,2117.4,2117.2,5.7]
[1617711347224,2.90695,2117.4,2117.3,5.8]
[1617711347425,2.90695,2117.4,2117.2,5.72]
[1617711347924,2.90695,2117.4,2117.3,5.76]
[1617711348124,2.90695,2117.4,2117.2,5.72]
[1617711348325,2.90695,2117.4,2117.3,5.71]
[1617711348725,2.90695,2117.4,2117.2,5.72]
[1617711349127,2.90695,2117.4,2117.3,5.72]
[1617711349429,2.90695,2117.4,2117.2,5.87]
[1617711349627,2.90695,2117.4,2117.3,5.73]
[1617711349929,2.90695,2117.4,2117.2,5.71]
[1617711350327,2.90695,2117.4,2117.3,5.89]
[1617711350527,2.90695,2117.4,2117.2,5.76]
[1617711350927,2.90695,2117.4,2117.3,5.87]
[1617711351228,2.90695,2117.4,2117.2,5.82]
[1617711351427,2.90695,2117.4,2117.3,5.88]
[1617711351727,2.90695,2117.4,2117.2,5.88]
[1617711351933,5.21165,2117.4,2117.2,5.88]
[1617711352128,5.21165,2117.4,2117.3,5.73]
[1617711352427,53.1502,2117.3,2116.9,5.8]
[1617711352629,53.1502,2117.3,2116.8,2.90695]
[1617711352927,53.1502,2117.3,2116.9,5.68]
[1617711354428,2.90695,2117.0,2116.9,5.68]
[1617711357433,3.84665,2117.0,2116.9,5.68]
[1617711358236,3.84665,2117.0,2115.7,8.05110065]
[1617711358237,3.84665,2117.0,2116.5,5.82]
[1617711358537,0.9397,2117.0,2116.9,4.8676]
[1617711358741,0.9397,2117.0,2116.6,5.79]
[1617711358941,70.0486,2116.9,2116.6,5.79]
[1617711359140,71.9418,2116.9,2116.5,2.90695]
[1617711359339,30.0,2116.8,2116.7,5.69]
[1617711359540,30.0,2116.8,2115.5,4.95597515]
[1617711359541,30.0,2116.8,2116.6,5.94]
[1617711359740,30.0,2116.8,2116.6,4.601]
[1617711359941,30.0,2116.8,2116.7,4.95]
[1617711360142,30.0,2116.8,2115.6,3.37]
[1617711360443,30.0,2116.8,2115.9,5.91]
[1617711360444,58.5197,2116.1,2115.9,5.91]
[1617711360640,60.9962,2116.1,2115.7,2.90695]
[1617711360840,60.9962,2116.1,2115.8,3.66]
[1617711361241,2.4765,2116.1,2115.8,3.66]
[1617711361442,64.3052,2115.9,2115.8,3.66]
[1617711362444,67.21215,2115.9,2115.8,3.66]
[1617711362847,2.90695,2115.9,2115.8,3.66]
[1617711363645,61.5955,2116.8,2115.8,5.66]
[1617711363947,61.5955,2116.8,2115.8,8.3264]
[1617711364948,61.5955,2116.8,2115.8,5.66]
[1617711366148,61.5955,2116.8,2115.8,7.6909]
[1617711366550,61.5955,2116.8,2116.5,2.90695]
[1617711366954,61.5955,2116.8,2116.6,5.74]
[1617711368561,2.90695,2116.7,2116.6,5.74]
[1617711369655,3.84835,2116.7,2116.6,5.74]
[1617711372854,3.84835,2116.7,2116.6,5.307]
[1617711373059,3.84835,2116.7,2116.6,4.9358]
[1617711373858,2.90695,2116.7,2116.6,4.9358]
[1617711374861,3.84085,2116.7,2116.6,4.9358]
[1617711375158,3.84085,2116.7,2116.6,4.2057]
[1617711375764,3.84085,2116.7,2116.6,1.8548]
[1617711376060,3.84085,2116.7,2116.1,2.90695]
[1617711376459,3.84085,2116.7,2116.2,5.69]
[1617711376662,2.90695,2116.3,2116.2,5.69]
[1617711376860,4.83925,2116.3,2116.2,5.69]
[1617711378063,4.83925,2116.3,2115.9,5.82]
[1617711378462,4.83925,2116.3,2116.2,5.81]
[1617711378763,2.90695,2116.3,2116.1,2.90695]
[1617711379069,2.90695,2116.3,2116.2,5.9]
[1617711379264,2.90695,2116.3,2116.1,2.90695]
[1617711379665,2.90695,2116.3,2116.2,5.83]
[1617711382668,2.90695,2116.3,2116.2,8.133]
[1617711383472,2.90695,2116.3,2116.2,7.874]
[1617711386570,67.2216,2117.5,2116.7,75.4825]
[1617711386770,67.2216,2117.5,2117.0,2.90695]
[1617711386971,67.2216,2117.5,2117.1,5.78]
[1617711388675,2.90695,2117.2,2117.1,5.78]
[1617711393378,2.90695,2117.2,2117.1,7.78]
[1617711393578,31.93722934,2119.1,2117.1,7.78]
[1617711393781,61.3506,2118.9,2117.5,53.5999]
[1617711394281,61.3506,2118.9,2117.6,5.85]
[1617711394479,61.3506,2118.9,2117.6,8.3429]
[1617711394679,61.3506,2118.9,2117.9,2.90695]
[1617711395080,61.3506,2118.9,2118.0,5.92]
[1617711396680,2.90695,2118.1,2118.0,5.92]
[1617711398987,2.90695,2118.1,2117.8,5.86]
[1617711399185,2.90695,2118.1,2118.0,5.85]
[1617711399485,58.32095,2118.1,2117.8,5.86]
[1617711399884,58.32095,2118.1,2118.0,5.75]
[1617711400185,58.32095,2118.1,2117.8,5.81]
[1617711400384,60.16995,2118.1,2118.0,5.83]
[1617711400584,60.16995,2118.1,2118.0,5.6872]
[1617711400786,60.16995,2118.1,2117.9,5.71]
[1617711400987,60.16995,2118.1,2118.0,5.76]
[1617711401387,60.16995,2118.1,2117.4,2.90695]
[1617711401590,60.16995,2118.1,2118.0,5.84]
[1617711401987,60.16995,2118.1,2117.5,5.79]
[1617711402190,60.16995,2118.1,2118.0,5.92]
[1617711402588,60.16995,2118.1,2117.5,5.92]
[1617711402788,2.90695,2117.6,2117.4,2.90695]
[1617711403188,2.90695,2117.6,2117.5,5.72]
[1617711403988,2.90695,2117.6,2117.0,67.9653]
[1617711403989,2.90695,2117.6,2117.1,5.91]
[1617711404291,2.90695,2117.6,2117.5,5.81]
[1617711404690,2.90695,2117.2,2117.1,5.78]
[1617711406192,2.90695,2117.2,2116.9,5.93]
[1617711406491,2.90695,2117.2,2117.1,5.68]
[1617711406893,2.90695,2117.2,2116.9,5.94]
[1617711407091,2.90695,2117.2,2117.1,5.87]
[1617711407594,2.90695,2117.2,2116.9,5.69]
[1617711407893,2.90695,2117.2,2117.1,5.88]
[1617711408094,2.90695,2117.2,2116.9,5.89]
[1617711408295,2.90695,2117.2,2117.1,5.73]
[1617711408695,2.90695,2117.2,2116.9,5.75]
[1617711408994,2.90695,2117.2,2117.1,5.78]
[1617711409196,2.90695,2117.2,2116.9,5.81]
[1617711409595,2.90695,2117.2,2117.1,5.72]
[1617711409796,2.90695,2117.2,2116.9,5.87]
[1617711410197,2.90695,2117.2,2117.1,5.77]
[1617711410397,2.90695,2117.2,2116.9,5.75]
[1617711410799,2.90695,2117.2,2117.1,5.67]
[1617711411000,2.90695,2117.2,2116.9,5.71]
[1617711411299,2.90695,2117.2,2117.1,5.86]
[1617711411601,2.90695,2117.2,2116.9,5.87]
[1617711411906,2.90695,2117.2,2117.1,5.93]
[1617711412107,2.90695,2117.2,2117.1,7.7535]
[1617711412408,2.90695,2117.2,2117.1,1.8235]
[1617711412604,2.90695,2117.2,2117.1,7.5335]
[1617711414902,2.90695,2117.2,2117.1,5.71]
[1617711415201,2.90695,2117.2,2116.9,5.94]
[1617711415601,2.90695,2117.2,2117.1,5.89]
[1617711415902,2.90695,2117.2,2116.9,5.73]
[1617711416104,2.90695,2117.2,2117.1,5.81]
[1617711416504,2.90695,2117.2,2116.9,5.75]
[1617711416803,2.90695,2117.2,2117.1,5.72]
[1617711417005,2.90695,2117.2,2117.0,2.6702]
[1617711417406,2.90695,2117.2,2117.1,5.94]
[1617711418909,2.90695,2117.2,2117.1,8.84695]
[1617711420312,2.90695,2117.2,2117.1,5.94]
[1617711421813,2.90695,2117.2,2117.1,2.5477]
[1617711422013,2.90695,2117.2,2117.1,8.2477]
[1617711425624,2.90695,2117.2,2117.1,10.2477]
[1617711425924,2.90695,2117.2,2117.1,8.2477]
[1617711426725,2.90695,2117.2,2117.1,10.2477]
[1617711430828,2.90695,2117.2,2117.1,67.315]
[1617711431429,2.90695,2117.2,2117.1,65.315]
[1617711432632,2.90695,2117.2,2117.1,8.2477]
[1617711432834,2.90695,2117.2,2117.1,5.7]
[1617711433335,2.90695,2117.2,2116.9,5.77]
[1617711433534,2.90695,2117.2,2117.1,5.85]
[1617711434033,2.90695,2117.2,2116.9,5.83]
[1617711436936,2.90695,2117.2,2116.9,5.6207]
[1617711437339,67.0811,2117.0,2116.3,2.90695]
[1617711437538,67.0811,2117.0,2116.4,5.83]
[1617711437942,67.0811,2117.0,2116.3,2.90695]
[1617711438339,67.0811,2117.0,2116.4,5.78]
[1617711439039,2.90695,2116.5,2116.4,5.78]
[1617711439239,5.76535,2116.5,2116.4,5.78]
[1617711443040,2.90695,2116.5,2116.4,5.78]
[1617711443941,2.90695,2116.5,2116.4,64.797]
[1617711444645,2.90695,2116.5,2116.4,67.0416]
[1617711446848,2.90695,2116.5,2116.4,5.78]
[1617711451054,2.90695,2116.5,2116.4,7.78]
[1617711451655,3.85865,2116.5,2116.4,7.78]
[1617711451855,2.90695,2116.5,2116.4,7.78]
[1617711452756,2.90695,2116.5,2116.4,8.7156]
[1617711453156,2.90695,2116.5,2116.4,6.7156]
[1617711453656,2.90695,2116.5,2116.4,5.78]
[1617711453957,2.90695,2116.5,2116.4,5.761]
[1617711454759,2.90695,2116.5,2116.4,60.9791]
[1617711455457,67.7989,2117.4,2116.4,60.9791]
[1617711457060,67.7989,2117.4,2116.8,2.90695]
[1617711457260,67.7989,2117.4,2116.4,60.9791]
[1617711457561,69.6392,2117.4,2116.9,5.7]
[1617711457761,69.6392,2117.4,2116.5,5.74]
[1617711458567,69.6392,2117.4,2116.6,2.0]
[1617711458765,67.7989,2117.4,2116.6,2.0]
[1617711459066,67.7989,2117.4,2116.7,8.83695]
[1617711461172,2.90695,2116.8,2116.7,8.83695]
[1617711464778,2.90695,2116.8,2116.7,10.83695]
[1617711472590,5.27165,2116.8,2116.7,10.83695]
[1617711475696,2.90695,2116.8,2116.7,10.83695]
[1617711479001,30.0,2118.2,2116.7,10.83695]
[1617711479304,2.90695,2117.6,2117.5,52.8541]
[1617711479502,2.90695,2117.6,2117.5,55.7113]
[1617711479801,2.90695,2117.6,2117.5,61.6613]
[1617711482103,2.90695,2117.6,2117.5,8.8072]
[1617711482303,2.90695,2117.6,2117.5,5.95]
[1617711482707,2.90695,2117.6,2117.4,5.82]
[1617711482908,2.90695,2117.6,2117.5,5.77]
[1617711483310,2.90695,2117.6,2117.4,5.7]
[1617711483711,2.90695,2117.6,2117.5,5.93]
[1617711483914,2.90695,2117.6,2117.4,5.86]
[1617711484312,2.90695,2117.6,2117.5,5.9]
[1617711484515,2.90695,2117.6,2117.4,5.91]
[1617711485916,71.1004,2117.8,2117.4,5.91]
[1617711486114,2.571,2118.3,2117.4,5.91]
[1617711486314,2.571,2118.3,2117.8,71.1442]
[1617711486514,2.571,2118.3,2117.8,73.5797]
[1617711486714,106.1451,2119.0,2117.8,73.5797]
[1617711486715,106.1451,2119.0,2117.9,5.91]
[1617711487315,106.1451,2119.0,2118.5,2.90695]
[1617711487515,106.1451,2119.0,2118.6,5.75]
[1617711489216,2.90695,2118.7,2118.6,5.75]
[1617711493923,2.90695,2118.7,2118.6,63.4698]
[1617711494922,91.5607,2119.3,2118.6,63.4698]
[1617711495222,2.571,2119.4,2118.6,8.7285]
[1617711495424,2.571,2119.4,2119.1,62.0246]
[1617711495622,2.90695,2119.2,2119.1,66.92505]
[1617711496123,2.90695,2119.2,2119.1,72.80505]
[1617711498922,32.571,2120.2,2119.1,72.80505]
[1617711499424,2.571,2120.2,2119.1,72.80505]
[1617711499726,9.62164949,2120.5,2120.1,56.4348]
[1617711499924,9.62164949,2120.5,2120.1,65.1287]
[1617711500228,9.6078,2120.5,2120.1,65.1287]
[1617711500725,9.6078,2120.5,2120.1,8.6939]
[1617711501128,9.6078,2120.5,2120.1,5.8]
[1617711501528,2.90695,2120.2,2119.9,5.93]
[1617711501929,2.90695,2120.2,2119.8,58.4647]
[1617711502128,2.90695,2120.2,2120.0,5.9]
[1617711502430,2.90695,2120.2,2119.9,5.82]
[1617711502634,2.90695,2120.2,2119.8,58.4647]
[1617711502828,2.90695,2120.2,2120.1,5.78]
[1617711503128,2.90695,2120.2,2120.1,1.8512]
[1617711503429,2.90695,2120.2,2120.1,7.7712]
[1617711510842,2.90695,2120.2,2120.1,5.92]
[1617711514146,2.90695,2120.2,2119.9,5.87]
[1617711514446,2.90695,2120.2,2120.1,5.67]
[1617711514946,2.90695,2120.2,2119.9,5.69]
[1617711515147,2.90695,2120.2,2120.1,5.67]
[1617711515347,2.90695,2120.2,2119.9,5.8]
[1617711515649,2.90695,2120.2,2120.1,5.88]
[1617711516147,2.90695,2120.2,2119.9,5.8]
[1617711516347,2.90695,2120.2,2120.1,5.7]
[1617711516748,2.90695,2120.2,2119.9,5.78]
[1617711517150,2.90695,2120.2,2120.1,5.9]
[1617711517353,2.90695,2120.2,2119.9,5.74]
[1617711517751,2.90695,2120.2,2120.1,5.92]
[1617711518154,2.90695,2120.2,2119.9,5.78]
[1617711518354,2.90695,2120.2,2120.1,5.7]
[1617711518653,2.90695,2120.2,2119.9,5.91]
[1617711519054,2.90695,2120.2,2120.1,5.75]
[1617711519257,2.90695,2120.2,2119.9,5.94]
[1617711519854,2.90695,2120.2,2120.1,5.9]
[1617711520056,2.90695,2120.2,2119.9,5.76]
[1617711520255,2.90695,2120.2,2120.1,5.91]
[1617711520555,2.90695,2120.2,2119.9,5.76]
[1617711522760,78.9964,2120.1,2119.8,5.66]
[1617711523164,78.9964,2120.1,2120.0,5.94]
[1617711523568,78.9964,2120.1,2119.8,5.74]
[1617711523765,2.90695,2119.9,2119.7,2.90695]
[1617711524166,2.90695,2119.9,2119.8,5.83]
[1617711549802,9.6078,2120.5,2119.8,5.83]
[1617711550002,2.90695,2120.2,2119.8,5.83]
[1617711551907,2.90695,2120.2,2120.1,2.90695]
[1617711552305,2.90695,2120.2,2120.1,8.57695]
[1617711552506,9.6078,2120.5,2120.1,10.57695]
[1617711553007,9.6078,2120.5,2120.1,8.57695]
[1617711553906,9.6078,2120.5,2120.4,2.90695]
[1617711554411,9.6078,2120.5,2120.4,77.21045]
[1617711555510,9.6078,2120.5,2120.4,74.3035]
[1617711556012,12.51475,2120.5,2120.4,74.3035]
[1617711557116,12.51475,2120.5,2120.4,5.81]
[1617711557517,12.51475,2120.5,2120.2,70.6396]
[1617711557717,12.51475,2120.5,2120.4,5.8]
[1617711557920,12.51475,2120.5,2120.4,8.70695]
[1617711558118,12.51475,2120.5,2120.4,5.11715]
[1617711558318,12.51475,2120.5,2120.4,10.81715]
[1617711562023,12.51475,2120.5,2120.4,8.60695]
[1617711574435,12.51475,2120.5,2120.4,10.60695]
[1617711578139,9.6078,2120.5,2120.4,10.60695]
[1617711596561,9.6078,2120.5,2120.4,63.87595]
[1617711596762,9.6078,2120.5,2120.4,10.60695]
[1617711597663,9.6078,2120.5,2120.4,68.96035]
[1617711598164,9.6078,2120.5,2120.4,66.96035]
[1617711598767,9.6078,2120.5,2120.4,8.60695]
[1617711598969,11.5858,2120.5,2120.4,8.60695]
[1617711600270,9.6078,2120.5,2120.4,8.60695]
[1617711602373,12.51475,2120.5,2120.4,8.60695]
[1617711604777,9.6078,2120.5,2120.4,8.60695]
[1617711605379,9.6078,2120.5,2120.4,10.60695]
[1617711605979,9.6078,2120.5,2120.4,12.67105]
[1617711609889,9.6078,2120.5,2120.4,10.60695]
[1617711611794,10.5449,2120.5,2120.4,11.56195]
[1617711611993,10.5449,2120.5,2120.4,10.60695]
[1617711612794,9.6078,2120.5,2120.4,10.60695]
[1617711613193,9.6078,2120.5,2120.4,11.55225]
[1617711614998,9.6078,2120.5,2120.4,9.55225]
[1617711615698,9.6078,2120.5,2120.4,8.60695]
[1617711615898,13.0737,2120.5,2120.4,8.60695]
[1617711616398,12.1297,2120.5,2120.4,8.60695]
[1617711617803,86.2689,2120.5,2120.4,8.60695]
[1617711618003,86.2689,2120.5,2120.4,8.14485]
[1617711618304,89.17585,2120.5,2120.4,8.14485]
[1617711619404,15.03665,2120.5,2120.4,8.14485]
[1617711622609,12.1297,2120.5,2120.4,8.14485]
[1617711622912,9.6078,2120.5,2120.4,8.14485]
[1617711623514,9.6078,2120.5,2120.4,9.08615]
[1617711624009,9.6078,2120.5,2120.4,8.14485]
[1617711624209,9.6078,2120.5,2120.4,10.14485]
[1617711625110,9.6078,2120.5,2120.4,11.07775]
[1617711625717,9.6078,2120.5,2120.4,10.14485]
[1617711629515,10.5513,2120.5,2120.4,10.14485]
[1617711629815,9.6078,2120.5,2120.4,10.14485]
[1617711630120,9.6078,2120.5,2120.4,8.14485]
[1617711636218,11.8099,2120.5,2120.4,8.14485]
[1617711637423,9.6078,2120.5,2120.4,8.14485]
[1617711638022,9.6078,2120.5,2120.4,9.07765]
[1617711638222,9.6078,2120.5,2120.4,8.14485]
[1617711639224,10.5641,2120.5,2120.4,9.09975]
[1617711639424,10.5641,2120.5,2120.4,11.09975]
[1617711639626,10.5641,2120.5,2120.4,10.14485]
[1617711639824,9.6078,2120.5,2120.4,10.14485]
[1617711650137,9.6078,2120.5,2120.4,11.09445]
[1617711650438,9.6078,2120.5,2120.4,9.09445]
[1617711650637,9.6078,2120.5,2120.4,8.14485]
[1617711652639,9.6078,2120.5,2120.4,9.07625]
[1617711653141,9.6078,2120.5,2120.4,8.14485]
[1617711654240,9.6078,2120.5,2120.4,9.08715]
[1617711656444,9.6078,2120.5,2120.4,11.08715]
[1617711658343,9.6078,2120.5,2120.4,10.14485]
[1617711661446,9.6078,2120.5,2120.4,75.13635]
[1617711661645,9.6078,2120.5,2120.4,73.13635]
[1617711661845,12.0868,2120.5,2120.4,73.13635]
[1617711664052,12.0868,2120.5,2120.4,74.08705]
[1617711664448,12.0868,2120.5,2120.4,73.13635]
[1617711664749,12.0868,2120.5,2120.4,8.14485]
[1617711665248,9.6078,2120.5,2120.4,8.14485]
[1617711666054,9.6078,2120.5,2120.4,10.14485]
[1617711668665,9.6078,2120.5,2120.4,11.09365]
[1617711669556,9.6078,2120.5,2120.4,10.14485]
[1617711672960,9.6078,2120.5,2120.4,11.08105]
[1617711673458,9.6078,2120.5,2120.4,10.14485]
[1617711676267,8.9506,2120.5,2120.4,10.14485]
[1617711676463,4.9326,2120.5,2120.4,10.14485]
[1617711676664,3.986,2120.5,2120.4,10.14485]
[1617711677063,3.7792,2120.5,2120.4,10.14485]
[1617711677262,3.2321,2120.5,2120.4,11.08325]
[1617711678664,3.2321,2120.5,2120.4,10.14485]
[1617711679368,3.2321,2120.5,2120.4,96.03925]
[1617711679666,3.2321,2120.5,2120.4,40.14485]
[1617711681669,3.2321,2120.5,2120.4,123.84585]
[1617711681867,3.2321,2120.5,2120.4,40.14485]
[1617711682068,3.2321,2120.5,2120.4,123.84585]
[1617711682269,3.2321,2120.5,2120.4,40.14485]
[1617711682968,3.2321,2120.5,2120.4,41.09165]
[1617711684368,3.0313,2120.5,2120.4,41.09165]
[1617711684671,3.0313,2120.5,2120.4,40.14485]
[1617711685172,3.0313,2120.5,2120.4,10.14485]
[1617711685373,3.0313,2120.5,2120.4,64.62195]
[1617711687175,3.0313,2120.5,2120.4,10.14485]
[1617711687778,3.0313,2120.5,2120.4,11.08005]
[1617711688981,3.0313,2120.5,2120.4,10.14485]
[1617711689980,3.0313,2120.5,2120.4,11.09505]
[1617711690881,3.0313,2120.5,2120.4,66.43675]
[1617711691082,3.0313,2120.5,2120.4,64.43675]
[1617711696185,3.0313,2120.5,2120.4,66.43675]
[1617711700889,3.0313,2120.5,2120.4,10.14485]
[1617711701092,3.0313,2120.5,2120.4,13.03815]
[1617711701591,0.083,2120.5,2120.4,13.03815]
[1617711702097,0.9393,2120.5,2120.4,13.99475]
[1617711702299,2.9302,2121.8,2120.4,10.14485]
[1617711702593,2.9302,2121.8,2120.7,53.24]
[1617711702894,2.9302,2121.8,2121.7,2.90695]
[1617711703093,2.9302,2121.8,2121.7,8.56695]
[1617711703294,32.4336,2122.3,2121.7,8.56695]
[1617711704895,2.90695,2121.8,2121.7,8.56695]
[1617711705095,4.92095,2121.8,2121.7,5.66]
[1617711705493,4.92095,2121.8,2120.8,5.68]
[1617711705897,4.92095,2121.8,2121.7,5.76]
[1617711706097,4.92095,2121.8,2120.7,53.24]
[1617711706296,4.92095,2121.8,2120.8,5.85]
[1617711706501,5.87655,2121.8,2121.7,5.68]
[1617711706697,34.92095,2121.8,2121.7,5.68]
[1617711706899,34.92095,2121.8,2121.3,2.90695]
[1617711707098,34.92095,2121.8,2121.7,5.8]
[1617711707600,34.92095,2121.8,2120.7,53.24]
[1617711707601,34.92095,2121.8,2120.8,5.69]
[1617711707801,30.0,2121.6,2121.5,5.81]
[1617711708199,30.0,2121.6,2120.8,5.72]
[1617711708400,30.0,2121.6,2121.5,5.84]
[1617711708700,30.0,2121.6,2120.8,5.84]
[1617711708901,4.92095,2121.8,2121.1,2.90695]
[1617711709100,34.92095,2121.8,2121.5,5.67]
[1617711709400,2.90695,2121.8,2121.2,5.87]
[1617711709600,2.90695,2121.8,2121.6,5.93]
[1617711710001,2.90695,2121.8,2121.2,5.67]
[1617711710501,2.90695,2121.8,2121.7,5.93]
[1617711710700,2.90695,2121.8,2121.2,5.86]
[1617711710901,2.90695,2121.8,2120.7,53.24]
[1617711710902,30.0,2122.0,2121.7,5.88]
[1617711711302,30.0,2122.0,2121.6,2.74]
[1617711711603,30.9354,2122.0,2121.8,5.69]
[1617711711806,30.0,2122.0,2121.6,5.74]
[1617711712005,32.0,2122.0,2121.6,5.74]
[1617711712209,2.0,2122.0,2121.9,5.66]
[1617711712407,8.34,2121.8,2121.5,2.90695]
[1617711712607,10.565,2121.8,2121.6,5.87]
[1617711712807,2.90695,2121.7,2121.6,5.87]
[1617711713811,2.90695,2121.7,2121.6,5.6089]
[1617711714513,32.90695,2121.7,2121.6,5.6089]
[1617711714712,34.90695,2121.7,2121.6,5.4273]
[1617711714913,34.90695,2121.7,2121.6,5.1304]
[1617711716214,32.90695,2121.7,2121.6,5.1304]
[1617711718222,32.90695,2121.7,2121.6,4.1915]
[1617711721726,2.90695,2121.7,2121.6,4.1915]
[1617711729040,2.90695,2121.7,2121.6,75.57245]
[1617711729341,2.90695,2121.7,2121.6,72.5499]
[1617711731242,2.90695,2121.7,2121.6,75.45685]
[1617711735244,2.90695,2121.7,2121.6,72.5499]
[1617711737244,2.90695,2121.7,2121.6,75.45685]
[1617711738858,2.90695,2121.7,2121.6,77.47215]
[1617711739147,8.34,2121.8,2121.6,77.47215]
[1617711740448,8.34,2121.8,2121.6,75.45685]
[1617711741248,2.90695,2121.7,2121.6,75.45685]
[1617711751163,8.34,2121.8,2121.6,75.45685]
[1617711751358,11.24695,2121.8,2121.6,77.61015]
[1617711752657,11.24695,2121.8,2121.6,9.13615]
[1617711753365,8.34,2121.8,2121.6,9.13615]
[1617711759167,8.34,2121.8,2121.7,56.5264]
[1617711759766,8.34,2121.8,2121.7,62.2564]
[1617711761768,8.34,2121.8,2121.7,5.73]
[1617711769482,8.34,2121.8,2121.7,7.73]
[1617711773791,8.34,2121.8,2121.7,37.73]
[1617711773999,7.265,2121.8,2121.7,37.73]
[1617711774292,4.6109,2121.8,2121.7,37.73]
[1617711774990,0.0574,2121.8,2121.7,37.73]
[1617711775191,0.0001,2121.8,2121.7,37.73]
[1617711775492,7.34452454,2122.8,2121.7,37.73]
[1617711776997,7.34452454,2122.8,2121.8,73.9312]
[1617711777297,7.34452454,2122.8,2121.9,32.0]
[1617711777498,5.95242454,2122.8,2122.7,34.90695]
[1617711777697,5.95242454,2122.8,2122.7,43.03225]
[1617711777898,0.01384217,2124.3,2122.7,43.03225]
[1617711778098,0.01384217,2124.3,2123.7,64.8979]
[1617711778299,0.01384217,2124.3,2123.8,5.72]
[1617711778801,67.68544126,2124.4,2123.8,5.72]
[1617711779503,67.6716,2124.4,2124.3,2.90695]
[1617711779702,67.6716,2124.4,2124.3,8.76695]
[1617711780002,67.68544046,2124.4,2124.3,10.93235]
[1617711780203,0.0138386,2124.6,2124.3,10.93235]
[1617711780705,2.571,2124.7,2124.6,60.4312]
[1617711780903,0.01383744,2124.8,2124.6,60.4312]
[1617711781106,0.01383735,2125.0,2124.6,66.2212]
[1617711781403,0.01383735,2125.0,2124.8,2.90695]
[1617711781603,0.01383735,2125.0,2124.8,5.30645]
[1617711781807,0.01383735,2125.0,2124.9,5.73]
[1617711782605,0.05535119,2125.0,2124.9,5.73]
[1617711783005,0.05535119,2125.0,2124.7,5.73]
[1617711783306,0.05535119,2125.0,2124.9,5.79]
[1617711783507,0.02767559,2125.0,2124.9,5.79]
[1617711783706,0.02767559,2125.0,2124.8,5.81]
[1617711783907,0.02767559,2125.0,2124.9,5.72]
[1617711784106,0.01383761,2125.0,2124.9,5.72]
[1617711784308,0.01383761,2125.0,2124.7,5.69]
[1617711784510,0.02767516,2125.0,2124.9,5.65]
[1617711785010,0.0138376,2125.0,2124.8,5.91]
[1617711785210,2.571,2125.5,2124.9,5.8]
[1617711785410,2.90695,2125.0,2124.9,2.90695]
[1617711786110,2.90695,2125.0,2124.9,8.67695]
[1617711791419,2.90695,2125.0,2124.9,10.85415]
[1617711794921,3.83595,2125.0,2124.9,10.85415]
[1617711795121,2.90695,2125.0,2124.9,10.85415]
[1617711798827,2.90695,2125.0,2124.9,11.79415]
[1617711799028,2.90695,2125.0,2124.9,10.85415]
[1617711799228,2.90695,2125.0,2124.9,79.38645]
[1617711800730,2.90695,2125.0,2124.9,10.85415]